[Event "German Bundesliga 2024-25"]
[Site "Germany"]
[Date "2025.02.01"]
[Round "7.14"]
[White "Ferreira, Jorge Viterbo"]
[Black "Delchev, Aleksander"]
[Result "1-0"]
[Annotator "ChessBase"]
[ECO "C77"]
[WhiteElo "2523"]
[BlackElo "2464"]
[PlyCount "81"]
[EventDate "2024.09.27"]
[EventType "team-tourn"]
[EventCountry "GER"]
[SourceTitle "playchess.com"]
[Source "ChessBase"]
[SourceQuality "1"]
[WhiteTeam "Heimbach-Weis-Neuwied"]
[BlackTeam "Deggendorf"]
[TimeControl "40/5400+30:1800+30"]

1. e4 {[%emt 0:00:04]} e5 {[%emt 0:00:33]} 2. Nf3 {[%emt 0:00:10]} Nc6 {[%emt 0:00:28]} 3. Bb5 {[%emt 0:00:11]} a6 {[%emt 0:00:48]} 4. Ba4 {[%emt 0:00:13]} Nf6 {[%emt 0:00:51]} 5. d3 {[%emt 0:00:14]} d6 {[%emt 0:01:49]} 6. c3 {[%emt 0:00:31]} g6 {[%emt 0:01:43]} 7. O-O {[%emt 0:00:13]} Bg7 {[%emt 0:00:58]} 8. Re1 {[%emt 0:00:14]} O-O {[%emt 0:01:00]} 9. h3 {[%emt 0:00:12]} Re8 {[%emt 0:02:22]} 10. Be3 {[%emt 0:00:19]} Bd7 {[%emt 0:14:36]} 11. Nbd2 {[%emt 0:00:57]} h6 {[%emt 0:00:10]} 12. a3 {[%emt 0:14:18]} d5 {[%emt 0:09:05]} 13. b4 {[%emt 0:04:23]} b6 {[%emt 0:10:17]} 14. Qc2 {[%emt 0:15:17]} Re7 {[%emt 0:07:29]} 15. Nf1 {[%emt 0:08:03]} Qe8 {[%emt 0:10:32]} 16. Bb3 {[%emt 0:01:19]} Be6 {[%emt 0:00:43]} 17. Ng3 {[%emt 0:04:24]} Rd8 {[%emt 0:05:47]} 18. Rad1 {[%emt 0:01:46]} dxe4 {[%emt 0:08:29]} 19. dxe4 {[%emt 0:00:23]} Rxd1 {[%emt 0:02:26]} 20. Rxd1 {[%emt 0:00:10]} Rd7 {[%emt 0:00:07]} 21. c4 {[%emt 0:04:56]} Rxd1+ {[%emt 0:03:55]} 22. Qxd1 {[%emt 0:00:15]} Qd7 {[%emt 0:01:02]} 23. Qc1 {[%emt 0:01:15]} Kh7 {[%emt 0:02:07]} 24. Ba4 {[%emt 0:01:49]} Ng8 {[%emt 0:00:14]} 25. Qc2 {[%emt 0:13:21]} Nge7 {[%emt 0:00:12]} 26. Ne2 {[%emt 0:02:40]} Qd8 {[%emt 0:03:28]} 27. Nc1 {[%emt 0:06:40]} f6 {[%emt 0:03:46]} 28. Bb3 {[%emt 0:03:44]} Qd7 {[%emt 0:02:43]} 29. Ne2 {[%emt 0:00:57]} f5 {[%emt 0:02:39]} 30. exf5 {[%emt 0:03:44]} gxf5 {[%emt 0:00:17]} 31. Ba4 {[%emt 0:06:30]} Qd8 {[%emt 0:01:07]} 32. Ng3 {[%emt 0:01:02]} Nb8 {[%emt 0:02:17]} 33. Nh4 {[%emt 0:03:57]} Qf8 {[%emt 0:00:36]} 34. f4 {[%emt 0:00:42]} Qf6 {[%emt 0:01:18]} 35. Nf3 {[%emt 0:00:24]} exf4 {[%emt 0:00:45]} 36. Bxf4 {[%emt 0:00:29]} Nbc6 {[%emt 0:00:27]} 37. Kh2 {[%emt 0:01:20]} Nd4 {[%emt 0:00:44]} 38. Qf2 {[%emt 0:01:40]} Nxf3+ {[%emt 0:00:46]} 39. Qxf3 {[%emt 0:00:06]} Ng6 {[%emt 0:00:35]} 40. Bxc7 {[%emt 0:00:28]} f4 {[%emt 0:00:32]} 41. Nh5 {[%emt 0:03:23]} 1-0

[Event "German Bundesliga 2024-25"]
[Site "Germany"]
[Date "2025.02.01"]
[Round "7.15"]
[White "Popovic, Dusan"]
[Black "Kosakowski, Jakub"]
[Result "0-1"]
[Annotator "ChessBase"]
[ECO "B90"]
[WhiteElo "2487"]
[BlackElo "2516"]
[PlyCount "66"]
[EventDate "2024.09.27"]
[EventType "team-tourn"]
[EventCountry "GER"]
[SourceTitle "playchess.com"]
[Source "ChessBase"]
[SourceQuality "1"]
[WhiteTeam "Deggendorf"]
[BlackTeam "Heimbach-Weis-Neuwied"]
[TimeControl "40/5400+30:1800+30"]

1. e4 {[%emt 0:00:04]} c5 {[%emt 0:00:18]} 2. Nf3 {[%emt 0:00:14]} d6 {[%emt 0:00:12]} 3. d4 {[%emt 0:00:25]} cxd4 {[%emt 0:00:09]} 4. Nxd4 {[%emt 0:00:05]} Nf6 {[%emt 0:00:08]} 5. Nc3 {[%emt 0:00:05]} a6 {[%emt 0:00:08]} 6. a3 {[%emt 0:00:40]} e5 {[%emt 0:01:46]} 7. Nf5 {[%emt 0:00:14]} d5 {[%emt 0:02:15]} 8. Bg5 {[%emt 0:01:30]} d4 {[%emt 0:01:50]} 9. Bxf6 {[%emt 0:00:08]} gxf6 {[%emt 0:00:25]} 10. Nb1 {[%emt 0:00:06]} Bxf5 {[%emt 0:02:22]} 11. exf5 {[%emt 0:00:05]} Qd5 {[%emt 0:00:47]} 12. Qh5 {[%emt 0:01:34]} Qa5+ {[%emt 0:15:29]} 13. Nd2 {[%emt 0:01:51]} Bb4 {[%emt 0:01:40]} 14. O-O-O {[%emt 0:02:01]} Bxd2+ {[%emt 0:00:35]} 15. Rxd2 {[%emt 0:00:05]} Qc7 {[%emt 0:04:20]} 16. f4 {[%emt 0:13:57]} Nd7 {[%emt 0:03:23]} 17. fxe5 {[%emt 0:12:38]} fxe5 {[%emt 0:00:21]} 18. Qh4 {[%emt 0:19:38]} f6 {[%emt 0:18:39]} 19. Qh5+ {[%emt 0:01:47]} Ke7 {[%emt 0:04:06]} 20. g4 {[%emt 0:08:27]} Rag8 {[%emt 0:07:38]} 21. Be2 {[%emt 0:00:37]} b5 {[%emt 0:06:31]} 22. Kb1 {[%emt 0:10:48]} Nb6 {[%emt 0:08:11]} 23. Re1 {[%emt 0:07:53]} h6 {[%emt 0:01:36]} 24. Bf3 {[%emt 0:07:12]} Qc5 {[%emt 0:04:06]} 25. Qh4 {[%emt 0:02:28]} Nc4 {[%emt 0:06:44]} 26. Rd3 {[%emt 0:00:44]} b4 {[%emt 0:01:25]} 27. axb4 {[%emt 0:05:53]} Qxb4 {[%emt 0:00:21]} 28. Rb3 {[%emt 0:00:19]} Nd2+ {[%emt 0:01:14]} 29. Ka2 {[%emt 0:00:05]} Qa5+ {[%emt 0:00:28]} 30. Ra3 {[%emt 0:00:40]} Nxf3 {[%emt 0:00:06]} 31. Qf2 {[%emt 0:02:56]} Qd5+ {[%emt 0:00:44]} 32. Ka1 {[%emt 0:00:15]} Nxe1 {[%emt 0:00:06]} 33. Qxe1 {[%emt 0:00:05]} a5 {[%emt 0:00:35]} 0-1

[Event "German Bundesliga 2024-25"]
[Site "Germany"]
[Date "2025.02.01"]
[Round "7.16"]
[White "Winterberg, Lukas"]
[Black "Sedlak, Nikola"]
[Result "1/2-1/2"]
[Annotator "ChessBase"]
[ECO "D85"]
[WhiteElo "2410"]
[BlackElo "2444"]
[PlyCount "46"]
[EventDate "2024.09.27"]
[EventType "team-tourn"]
[EventCountry "GER"]
[SourceTitle "playchess.com"]
[Source "ChessBase"]
[SourceQuality "1"]
[WhiteTeam "Heimbach-Weis-Neuwied"]
[BlackTeam "Deggendorf"]
[TimeControl "40/5400+30:1800+30"]

1. d4 {[%emt 0:00:03]} Nf6 {[%emt 0:00:10]} 2. Nf3 {[%emt 0:00:09]} g6 {[%emt 0:00:10]} 3. c4 {[%emt 0:00:09]} Bg7 {[%emt 0:00:12]} 4. Nc3 {[%emt 0:00:10]} d5 {[%emt 0:01:06]} 5. cxd5 {[%emt 0:00:12]} Nxd5 {[%emt 0:00:09]} 6. e4 {[%emt 0:00:16]} Nxc3 {[%emt 0:00:13]} 7. bxc3 {[%emt 0:00:02]} c5 {[%emt 0:00:54]} 8. Bb5+ {[%emt 0:00:14]} Bd7 {[%emt 0:00:43]} 9. Bxd7+ {[%emt 0:00:13]} Nxd7 {[%emt 0:00:12]} 10. O-O {[%emt 0:00:20]} Qa5 {[%emt 0:00:59]} 11. Qb3 {[%emt 0:04:49]} b6 {[%emt 0:07:07]} 12. Bd2 {[%emt 0:02:20]} O-O {[%emt 0:00:57]} 13. a4 {[%emt 0:04:04]} Qa6 {[%emt 0:03:02]} 14. Rfe1 {[%emt 0:03:32]} Rac8 {[%emt 0:01:56]} 15. h4 {[%emt 0:04:50]} h6 {[%emt 0:03:53]} 16. e5 {[%emt 0:05:52]} cxd4 {[%emt 0:02:59]} 17. cxd4 {[%emt 0:00:43]} e6 {[%emt 0:01:05]} 18. a5 {[%emt 0:09:48]} Qc4 {[%emt 0:07:18]} 19. Qxc4 {[%emt 0:02:49]} Rxc4 {[%emt 0:00:06]} 20. axb6 {[%emt 0:00:28]} axb6 {[%emt 0:00:07]} 21. Ra7 {[%emt 0:00:15]} Nb8 {[%emt 0:02:15]} 22. Rb7 {[%emt 0:28:40]} Nc6 {[%emt 0:00:15]} 23. Be3 {[%emt 0:00:46]} Rb8 {[%emt 0:02:15]} 1/2-1/2